[Event "Early-Titled-Tuesday-Blitz-March-12-2024"]
[Site "Chess.com"]
[Date "2024.03.12"]
[Round "8"]
[White "DonkyDonkyDonkey"]
[Black "LeRoidesChampions"]
[Result "1-0"]
[WhiteElo "2898"]
[BlackElo "2648"]
[TimeControl "180+1"]
[EndTime "9:27:12 PDT"]
[Termination "DonkyDonkyDonkey won by resignation"]

1. e4 {[%clk 0:03:00.9]} 1... c5 {[%clk 0:02:57.3]} 2. Nc3 {[%clk 0:03:01]} 2...
a6 {[%clk 0:02:57.7]} 3. a4 {[%clk 0:03:00.8]} 3... Nc6 {[%clk 0:02:58.1]} 4. f4
{[%clk 0:03:00.8]} 4... g6 {[%clk 0:02:55.8]} 5. Nf3 {[%clk 0:03:01.4]} 5... Bg7
{[%clk 0:02:56.4]} 6. Bc4 {[%clk 0:03:02.2]} 6... d6 {[%clk 0:02:55.6]} 7. O-O
{[%clk 0:03:02.6]} 7... Nf6 {[%clk 0:02:55]} 8. d3 {[%clk 0:03:02.6]} 8... O-O
{[%clk 0:02:52.6]} 9. Qe1 {[%clk 0:03:03.3]} 9... Bg4 {[%clk 0:02:49.6]} 10. e5
{[%clk 0:02:50]} 10... dxe5 {[%clk 0:02:31.7]} 11. Nxe5 {[%clk 0:02:50.9]} 11...
Nxe5 {[%clk 0:02:19.2]} 12. fxe5 {[%clk 0:02:51.8]} 12... Qd4+ {[%clk
0:02:19.5]} 13. Kh1 {[%clk 0:02:50.6]} 13... Nh5 {[%clk 0:02:18.9]} 14. Nd5
{[%clk 0:02:33.5]} 14... Qxe5 {[%clk 0:01:50.9]} 15. Nxe7+ {[%clk 0:02:28.1]}
15... Kh8 {[%clk 0:01:49.3]} 16. Qxe5 {[%clk 0:02:26.9]} 16... Bxe5 {[%clk
0:01:50.2]} 17. Bh6 {[%clk 0:02:23.5]} 17... Bg7 {[%clk 0:01:42.1]} 18. Bxg7+
{[%clk 0:02:19.9]} 18... Kxg7 {[%clk 0:01:43]} 19. Rae1 {[%clk 0:02:17.5]} 19...
Be6 {[%clk 0:01:37]} 20. Nd5 {[%clk 0:01:56]} 20... b5 {[%clk 0:01:25.6]} 21.
axb5 {[%clk 0:01:56]} 21... axb5 {[%clk 0:01:26.1]} 22. Bb3 {[%clk 0:01:56.7]}
22... c4 {[%clk 0:01:08.8]} 23. dxc4 {[%clk 0:01:51.6]} 23... bxc4 {[%clk
0:01:09.7]} 24. Bxc4 {[%clk 0:01:49.9]} 24... Rac8 {[%clk 0:01:10.2]} 25. b3
{[%clk 0:01:38.8]} 25... Bxd5 {[%clk 0:01:08.3]} 26. Bxd5 {[%clk 0:01:39.7]}
26... Rxc2 {[%clk 0:01:08.9]} 27. Re7 {[%clk 0:01:40.3]} 27... Nf6 {[%clk
0:01:01.4]} 28. Bc4 {[%clk 0:01:40.4]} 28... Rb2 {[%clk 0:00:57.8]} 29. h3
{[%clk 0:01:40.4]} 29... h5 {[%clk 0:00:56.6]} 30. Kh2 {[%clk 0:01:39.7]} 30...
Rd2 {[%clk 0:00:49.6]} 31. Rf4 {[%clk 0:01:10.2]} 31... Nd5 {[%clk 0:00:41.5]}
32. Rd7 {[%clk 0:01:03.9]} 32... Rxg2+ {[%clk 0:00:41.6]} 33. Kxg2 {[%clk
0:01:03.2]} 33... Nxf4+ {[%clk 0:00:42.5]} 34. Kg3 {[%clk 0:01:01.9]} 34... g5
{[%clk 0:00:42.7]} 35. h4 {[%clk 0:01:02.3]} 35... Ng6 {[%clk 0:00:40.1]} 36.
hxg5 {[%clk 0:01:01.7]} 36... h4+ {[%clk 0:00:39.5]} 37. Kh3 {[%clk 0:01:00.9]}
37... Ne5 {[%clk 0:00:35.4]} 38. Rc7 {[%clk 0:00:58.5]} 38... Rh8 {[%clk
0:00:26.7]} 39. Bd5 {[%clk 0:00:48]} 39... Kg6 {[%clk 0:00:23.9]} 40. Re7 {[%clk
0:00:47.9]} 40... Nd3 {[%clk 0:00:21.8]} 41. Be4+ {[%clk 0:00:43.8]} 41... Kxg5
{[%clk 0:00:21.4]} 42. Bxd3 {[%clk 0:00:44.5]} 42... f6 {[%clk 0:00:20.6]} 43.
Rg7+ {[%clk 0:00:44.5]} 43... Kf4 {[%clk 0:00:21]} 44. Rg4+ {[%clk 0:00:45.2]}
44... Ke3 {[%clk 0:00:21.6]} 45. Bc4 {[%clk 0:00:45.5]} 45... f5 {[%clk
0:00:20.7]} 46. Rxh4 {[%clk 0:00:45.8]} 46... Rd8 {[%clk 0:00:20.8]} 47. Rh7
{[%clk 0:00:45.2]} 47... f4 {[%clk 0:00:21]} 48. Kg4 {[%clk 0:00:43.4]} 48... f3
{[%clk 0:00:17.7]} 49. Re7+ {[%clk 0:00:43.9]} 49... Kf2 {[%clk 0:00:18.1]} 50.
Rf7 {[%clk 0:00:44.7]} 50... Rd4+ {[%clk 0:00:18.6]} 51. Rf4 {[%clk 0:00:44.1]}
51... Rd6 {[%clk 0:00:07.7]} 52. Rxf3+ {[%clk 0:00:44.2]} 52... Kg2 {[%clk
0:00:08.6]} 53. Rf5 {[%clk 0:00:44]} 53... Kh2 {[%clk 0:00:08.8]} 54. Kf3 {[%clk
0:00:43.9]} 54... Kg1 {[%clk 0:00:08.3]} 55. Ke4 {[%clk 0:00:44.6]} 55... Kh2
{[%clk 0:00:07.5]} 56. Bd5 {[%clk 0:00:44.9]} 56... Rb6 {[%clk 0:00:07.4]} 57.
Kd4 {[%clk 0:00:45.5]} 57... Kg3 {[%clk 0:00:07.3]} 58. Kc5 {[%clk 0:00:46]}
58... Kh4 {[%clk 0:00:08.2]} 59. Kxb6 {[%clk 0:00:46.1]} 1-0

[Event "Early-Titled-Tuesday-Blitz-March-12-2024"]
[Site "Chess.com"]
[Date "2024.03.12"]
[Round "8"]
[White "FoxOnTheRun97"]
[Black "theoneandonlydaaevik"]
[Result "0-1"]
[WhiteElo "2605"]
[BlackElo "2527"]
[TimeControl "180+1"]
[EndTime "9:27:15 PDT"]
[Termination "theoneandonlydaaevik won by checkmate"]

1. d4 {[%clk 0:02:59.6]} 1... Nf6 {[%clk 0:02:59.9]} 2. Bg5 {[%clk 0:02:58.4]}
2... d5 {[%clk 0:02:59.6]} 3. Nd2 {[%clk 0:02:58]} 3... e6 {[%clk 0:02:46.2]} 4.
e3 {[%clk 0:02:58.1]} 4... Be7 {[%clk 0:02:46]} 5. Bd3 {[%clk 0:02:58.2]} 5...
c5 {[%clk 0:02:46.3]} 6. c3 {[%clk 0:02:58.2]} 6... Nc6 {[%clk 0:02:45.9]} 7. f4
{[%clk 0:02:58.4]} 7... h6 {[%clk 0:02:44.1]} 8. Bxf6 {[%clk 0:02:58.3]} 8...
Bxf6 {[%clk 0:02:44.1]} 9. Ngf3 {[%clk 0:02:58.8]} 9... Bd7 {[%clk 0:02:39.2]}
10. O-O {[%clk 0:02:58.3]} 10... O-O {[%clk 0:02:32.6]} 11. Ne5 {[%clk
0:02:56.5]} 11... Nxe5 {[%clk 0:02:25.3]} 12. fxe5 {[%clk 0:02:57.4]} 12... Bg5
{[%clk 0:02:25.6]} 13. Qe2 {[%clk 0:02:49.6]} 13... cxd4 {[%clk 0:02:18.4]} 14.
exd4 {[%clk 0:02:50.5]} 14... b5 {[%clk 0:02:12.8]} 15. Nf3 {[%clk 0:02:47.5]}
15... Rb8 {[%clk 0:02:12.3]} 16. Nxg5 {[%clk 0:02:42.7]} 16... Qxg5 {[%clk
0:02:13.2]} 17. Rf3 {[%clk 0:02:42.3]} 17... Kh8 {[%clk 0:01:40.5]} 18. Raf1
{[%clk 0:02:39.2]} 18... f5 {[%clk 0:01:34.7]} 19. exf6 {[%clk 0:02:38.2]} 19...
Rxf6 {[%clk 0:01:34.3]} 20. Rxf6 {[%clk 0:02:32]} 20... gxf6 {[%clk 0:01:35.2]}
21. Qf2 {[%clk 0:02:12]} 21... Rf8 {[%clk 0:01:08.2]} 22. h4 {[%clk 0:02:07.3]}
22... Qg7 {[%clk 0:01:07]} 23. Qf4 {[%clk 0:02:04.8]} 23... h5 {[%clk
0:00:53.5]} 24. a3 {[%clk 0:01:59.4]} 24... f5 {[%clk 0:00:49.2]} 25. Rf2 {[%clk
0:01:51.3]} 25... Rg8 {[%clk 0:00:48.2]} 26. Be2 {[%clk 0:01:45.7]} 26... Be8
{[%clk 0:00:47.8]} 27. Bf3 {[%clk 0:01:39.8]} 27... a5 {[%clk 0:00:28.2]} 28.
Re2 {[%clk 0:01:38.1]} 28... Qf6 {[%clk 0:00:24.3]} 29. Qc7 {[%clk 0:01:19.7]}
29... a4 {[%clk 0:00:09.3]} 30. Qf4 {[%clk 0:01:16.4]} 30... Bf7 {[%clk
0:00:08.7]} 31. Re5 {[%clk 0:01:06.3]} 31... Kg7 {[%clk 0:00:04.9]} 32. Bxd5
{[%clk 0:00:57.1]} 32... exd5 {[%clk 0:00:04.6]} 33. Rxf5 {[%clk 0:00:57.8]}
33... Qe7 {[%clk 0:00:04.7]} 34. Rf6 {[%clk 0:00:54.5]} 34... Qxf6 {[%clk
0:00:04.4]} 35. Qg3+ {[%clk 0:00:54.4]} 35... Qg6 {[%clk 0:00:03.4]} 36. Qe5+
{[%clk 0:00:54.2]} 36... Kh7 {[%clk 0:00:04]} 37. Qe2 {[%clk 0:00:44.7]} 37...
Re8 {[%clk 0:00:03.8]} 38. Qf3 {[%clk 0:00:43.2]} 38... Qb1+ {[%clk 0:00:03.8]}
39. Kh2 {[%clk 0:00:43.2]} 39... Qg6 {[%clk 0:00:03.6]} 40. Kg1 {[%clk
0:00:43.2]} 40... Re1+ {[%clk 0:00:03.1]} 41. Kh2 {[%clk 0:00:42.5]} 41... Re4
{[%clk 0:00:04]} 42. Qf2 {[%clk 0:00:39.2]} 42... Be6 {[%clk 0:00:03.4]} 43. Qf8
{[%clk 0:00:36.3]} 43... Rxh4+ {[%clk 0:00:03.1]} 44. Kg1 {[%clk 0:00:37.1]}
44... Qb1+ {[%clk 0:00:03]} 45. Kf2 {[%clk 0:00:37.1]} 45... Qf5+ {[%clk
0:00:03.4]} 46. Qxf5+ {[%clk 0:00:36.4]} 46... Bxf5 {[%clk 0:00:04.3]} 47. Kg3
{[%clk 0:00:37.3]} 47... Rg4+ {[%clk 0:00:04.5]} 48. Kf3 {[%clk 0:00:37.9]}
48... Be4+ {[%clk 0:00:05.2]} 49. Kf2 {[%clk 0:00:38.3]} 49... Rxg2+ {[%clk
0:00:06.1]} 50. Ke3 {[%clk 0:00:39.2]} 50... Rxb2 {[%clk 0:00:05.5]} 51. c4
{[%clk 0:00:40.1]} 51... bxc4 {[%clk 0:00:03.3]} 52. Kf4 {[%clk 0:00:40.5]}
52... c3 {[%clk 0:00:04.2]} 53. Ke3 {[%clk 0:00:41.4]} 53... c2 {[%clk
0:00:04.6]} 54. Kf4 {[%clk 0:00:42.3]} 54... c1=Q+ {[%clk 0:00:04.9]} 55. Ke5
{[%clk 0:00:43.2]} 55... Qc7+ {[%clk 0:00:05]} 56. Kf6 {[%clk 0:00:43.2]} 56...
Rf2+ {[%clk 0:00:05.3]} 57. Kg5 {[%clk 0:00:44.1]} 57... Qg3+ {[%clk 0:00:04.9]}
58. Kxh5 {[%clk 0:00:44]} 58... Rh2# {[%clk 0:00:05.8]} 0-1

[Event "Early-Titled-Tuesday-Blitz-March-12-2024"]
[Site "Chess.com"]
[Date "2024.03.12"]
[Round "8"]
[White "falzehope0"]
[Black "Winner_7777"]
[Result "0-1"]
[WhiteElo "2434"]
[BlackElo "2577"]
[TimeControl "180+1"]
[EndTime "9:27:22 PDT"]
[Termination "Winner_7777 won by checkmate"]

1. d4 {[%clk 0:03:00.9]} 1... d5 {[%clk 0:03:00.1]} 2. e3 {[%clk 0:03:01.3]}
2... Nf6 {[%clk 0:03:00.3]} 3. Bd3 {[%clk 0:03:01]} 3... c5 {[%clk 0:02:59.2]}
4. c3 {[%clk 0:03:01]} 4... Nc6 {[%clk 0:02:59.4]} 5. f4 {[%clk 0:03:01.3]} 5...
g6 {[%clk 0:02:58.6]} 6. Nf3 {[%clk 0:02:59.7]} 6... Bf5 {[%clk 0:02:59.3]} 7.
O-O {[%clk 0:02:57.9]} 7... Bg7 {[%clk 0:02:58.4]} 8. Ne5 {[%clk 0:02:57.4]}
8... O-O {[%clk 0:02:58.3]} 9. Bxf5 {[%clk 0:02:56.8]} 9... gxf5 {[%clk
0:02:58.4]} 10. Nd2 {[%clk 0:02:52.8]} 10... e6 {[%clk 0:02:57.7]} 11. b3 {[%clk
0:02:52.8]} 11... Rc8 {[%clk 0:02:47.6]} 12. Ba3 {[%clk 0:02:51.8]} 12... Nxe5
{[%clk 0:02:46.4]} 13. fxe5 {[%clk 0:02:51.2]} 13... Nd7 {[%clk 0:02:46.6]} 14.
Qh5 {[%clk 0:02:49.9]} 14... f6 {[%clk 0:02:25.2]} 15. Nf3 {[%clk 0:02:38.3]}
15... Qe8 {[%clk 0:02:06.9]} 16. Qh4 {[%clk 0:02:27.5]} 16... fxe5 {[%clk
0:02:05.7]} 17. dxe5 {[%clk 0:02:25.5]} 17... Nxe5 {[%clk 0:02:05.7]} 18. Rac1
{[%clk 0:01:53.8]} 18... Ng4 {[%clk 0:01:54]} 19. Rfe1 {[%clk 0:01:44.2]} 19...
e5 {[%clk 0:01:34.5]} 20. c4 {[%clk 0:01:39.8]} 20... e4 {[%clk 0:01:30.7]} 21.
Ng5 {[%clk 0:01:33.4]} 21... h6 {[%clk 0:01:30.9]} 22. Nh3 {[%clk 0:01:33]}
22... Qd8 {[%clk 0:01:13.8]} 23. Qg3 {[%clk 0:01:30]} 23... d4 {[%clk
0:01:07.4]} 24. Rcd1 {[%clk 0:01:23.9]} 24... d3 {[%clk 0:01:04.7]} 25. Nf4
{[%clk 0:01:20.7]} 25... Qd6 {[%clk 0:01:00.6]} 26. h3 {[%clk 0:01:14.6]} 26...
Ne5 {[%clk 0:00:40.4]} 27. Bb2 {[%clk 0:01:11.3]} 27... Kh7 {[%clk 0:00:35.5]}
28. Kh1 {[%clk 0:01:02.4]} 28... Rg8 {[%clk 0:00:31]} 29. Nh5 {[%clk 0:00:57.6]}
29... Bh8 {[%clk 0:00:30.6]} 30. Qh2 {[%clk 0:00:56.8]} 30... Rcf8 {[%clk
0:00:28.4]} 31. Rf1 {[%clk 0:00:52.2]} 31... Nxc4 {[%clk 0:00:13.4]} 32. Bxh8
{[%clk 0:00:42]} 32... Qxh2+ {[%clk 0:00:13.2]} 33. Kxh2 {[%clk 0:00:42.3]}
33... Nxe3 {[%clk 0:00:13.9]} 34. Bc3 {[%clk 0:00:34.2]} 34... Rxg2+ {[%clk
0:00:10.9]} 35. Kh1 {[%clk 0:00:31.4]} 35... Rg5 {[%clk 0:00:11.5]} 36. Nf6+
{[%clk 0:00:28.5]} 36... Rxf6 {[%clk 0:00:03.8]} 37. Bxf6 {[%clk 0:00:27.7]}
37... Rh5 {[%clk 0:00:04.7]} 38. h4 {[%clk 0:00:20.3]} 38... Nxf1 {[%clk
0:00:04.6]} 39. Rxf1 {[%clk 0:00:18.9]} 39... e3 {[%clk 0:00:05.4]} 40. Kg2
{[%clk 0:00:18.7]} 40... e2 {[%clk 0:00:04.3]} 41. Rg1 {[%clk 0:00:14.7]} 41...
d2 {[%clk 0:00:04.1]} 42. Kf3 {[%clk 0:00:12.3]} 42... Rg5 {[%clk 0:00:02.7]}
43. hxg5 {[%clk 0:00:11.7]} 43... e1=Q {[%clk 0:00:03.3]} 44. g6+ {[%clk
0:00:10.8]} 44... Kg8 {[%clk 0:00:03.4]} 45. Rg2 {[%clk 0:00:04.1]} 45... d1=Q+
{[%clk 0:00:03.1]} 46. Kf4 {[%clk 0:00:03.5]} 46... Qe4+ {[%clk 0:00:03]} 47.
Kg3 {[%clk 0:00:02.7]} 47... Qdg4+ {[%clk 0:00:03.8]} 48. Kh2 {[%clk 0:00:03.6]}
48... Qgxg2# {[%clk 0:00:03.3]} 0-1

[Event "Early-Titled-Tuesday-Blitz-March-12-2024"]
[Site "Chess.com"]
[Date "2024.03.12"]
[Round "8"]
[White "wonderfultime"]
[Black "AlmasRakhmatullaev"]
[Result "1-0"]
[WhiteElo "3071"]
[BlackElo "2847"]
[TimeControl "180+1"]
[EndTime "9:27:24 PDT"]
[Termination "wonderfultime won by resignation"]

1. d4 {[%clk 0:03:00.9]} 1... d5 {[%clk 0:02:56.6]} 2. Nf3 {[%clk 0:03:01.1]}
2... c6 {[%clk 0:02:56.3]} 3. Bf4 {[%clk 0:03:01.4]} 3... Nf6 {[%clk 0:02:56.1]}
4. e3 {[%clk 0:03:01.8]} 4... Bf5 {[%clk 0:02:55.6]} 5. c4 {[%clk 0:03:02.5]}
5... a6 {[%clk 0:02:52.7]} 6. Qb3 {[%clk 0:02:59.7]} 6... Ra7 {[%clk 0:02:52.4]}
7. Nbd2 {[%clk 0:02:19.5]} 7... e6 {[%clk 0:02:45.6]} 8. Be2 {[%clk 0:02:20]}
8... Nbd7 {[%clk 0:02:41.9]} 9. O-O {[%clk 0:02:19.7]} 9... h6 {[%clk
0:02:31.8]} 10. h3 {[%clk 0:02:09.3]} 10... Be7 {[%clk 0:02:30.4]} 11. Rac1
{[%clk 0:02:08.6]} 11... O-O {[%clk 0:02:24.5]} 12. Rfd1 {[%clk 0:02:08.3]}
12... Re8 {[%clk 0:02:11.6]} 13. Bd3 {[%clk 0:01:51.8]} 13... Bf8 {[%clk
0:01:40.4]} 14. cxd5 {[%clk 0:01:43.9]} 14... Nxd5 {[%clk 0:01:37.4]} 15. Bg3
{[%clk 0:01:32.8]} 15... Bxd3 {[%clk 0:01:36.1]} 16. Qxd3 {[%clk 0:01:33.7]}
16... c5 {[%clk 0:01:32.6]} 17. a3 {[%clk 0:01:23]} 17... b5 {[%clk 0:01:30.6]}
18. dxc5 {[%clk 0:01:11.3]} 18... Nxc5 {[%clk 0:01:30.3]} 19. Qb1 {[%clk
0:01:08]} 19... Qb6 {[%clk 0:01:25.5]} 20. Ne4 {[%clk 0:01:06.4]} 20... Nxe4
{[%clk 0:01:16]} 21. Qxe4 {[%clk 0:01:06.4]} 21... Rd8 {[%clk 0:01:14.3]} 22.
Ne5 {[%clk 0:01:06]} 22... Raa8 {[%clk 0:01:02.2]} 23. Qf3 {[%clk 0:01:02.6]}
23... Qb7 {[%clk 0:00:58.7]} 24. Rc2 {[%clk 0:00:50.7]} 24... Rdc8 {[%clk
0:00:46.9]} 25. Rdc1 {[%clk 0:00:47.4]} 25... Rxc2 {[%clk 0:00:38.1]} 26. Rxc2
{[%clk 0:00:48.3]} 26... f6 {[%clk 0:00:32.6]} 27. Ng6 {[%clk 0:00:42.2]} 27...
Rc8 {[%clk 0:00:26.8]} 28. Rd2 {[%clk 0:00:41.7]} 28... Qf7 {[%clk 0:00:21.9]}
29. Nxf8 {[%clk 0:00:39.9]} 29... Qxf8 {[%clk 0:00:22.2]} 30. e4 {[%clk
0:00:39.3]} 30... Nb6 {[%clk 0:00:22.4]} 31. Rd6 {[%clk 0:00:37.7]} 31... Nc4
{[%clk 0:00:21.1]} 32. Rxe6 {[%clk 0:00:34.6]} 32... Nxb2 {[%clk 0:00:19.6]} 33.
Rxa6 {[%clk 0:00:32]} 33... Nc4 {[%clk 0:00:19.3]} 34. Kh2 {[%clk 0:00:31.7]}
34... Qf7 {[%clk 0:00:17.7]} 35. Qf5 {[%clk 0:00:30.5]} 35... Re8 {[%clk
0:00:13.2]} 36. Qxb5 {[%clk 0:00:23.7]} 36... Rxe4 {[%clk 0:00:13.5]} 37. Ra8+
{[%clk 0:00:23.9]} 37... Kh7 {[%clk 0:00:10.2]} 38. Qb8 {[%clk 0:00:21.3]} 38...
Nd2 {[%clk 0:00:06.4]} 39. Qb5 {[%clk 0:00:08.4]} 39... Qe6 {[%clk 0:00:04.2]}
40. Qd3 {[%clk 0:00:07.5]} 40... Nc4 {[%clk 0:00:01.3]} 41. f3 {[%clk
0:00:08.1]} 41... f5 {[%clk 0:00:01.9]} 42. fxe4 {[%clk 0:00:08.3]} 42... fxe4
{[%clk 0:00:02.8]} 43. Qd8 {[%clk 0:00:08.3]} 43... e3 {[%clk 0:00:02.8]} 44.
Qh8+ {[%clk 0:00:08.9]} 44... Kg6 {[%clk 0:00:03.4]} 45. Qe8+ {[%clk 0:00:09.8]}
45... Kf5 {[%clk 0:00:04]} 46. Qxe6+ {[%clk 0:00:09.1]} 46... Kxe6 {[%clk
0:00:04.9]} 47. Bf4 {[%clk 0:00:09.2]} 47... e2 {[%clk 0:00:05.2]} 48. Re8+
{[%clk 0:00:09.3]} 48... Kf5 {[%clk 0:00:05.9]} 49. Rxe2 {[%clk 0:00:10]} 49...
Kxf4 {[%clk 0:00:06.4]} 50. a4 {[%clk 0:00:10.7]} 1-0

[Event "Early-Titled-Tuesday-Blitz-March-12-2024"]
[Site "Chess.com"]
[Date "2024.03.12"]
[Round "8"]
[White "sokidze"]
[Black "andrew-blr"]
[Result "0-1"]
[WhiteElo "2768"]
[BlackElo "2625"]
[TimeControl "180+1"]
[EndTime "9:27:24 PDT"]
[Termination "andrew-blr won by resignation"]

1. d4 {[%clk 0:03:00.9]} 1... d5 {[%clk 0:02:59.2]} 2. c4 {[%clk 0:03:00.7]}
2... e6 {[%clk 0:02:59.5]} 3. Nc3 {[%clk 0:03:00.2]} 3... c5 {[%clk 0:02:59.7]}
4. cxd5 {[%clk 0:02:57.4]} 4... exd5 {[%clk 0:03:00.6]} 5. Nf3 {[%clk
0:02:56.6]} 5... Nc6 {[%clk 0:03:00.8]} 6. g3 {[%clk 0:02:55]} 6... Nf6 {[%clk
0:03:00.7]} 7. Bg2 {[%clk 0:02:54.8]} 7... Be7 {[%clk 0:03:01]} 8. O-O {[%clk
0:02:54.4]} 8... O-O {[%clk 0:03:01.5]} 9. Bg5 {[%clk 0:02:53.9]} 9... c4 {[%clk
0:03:01.2]} 10. Ne5 {[%clk 0:02:53.6]} 10... Be6 {[%clk 0:03:00.6]} 11. Nxc6
{[%clk 0:02:49.3]} 11... bxc6 {[%clk 0:03:00.1]} 12. b3 {[%clk 0:02:49.9]} 12...
Qa5 {[%clk 0:02:56.6]} 13. Qd2 {[%clk 0:02:49.4]} 13... Bb4 {[%clk 0:02:49.2]}
14. Rfc1 {[%clk 0:02:48.6]} 14... Ne4 {[%clk 0:02:41.7]} 15. Bxe4 {[%clk
0:02:35.7]} 15... dxe4 {[%clk 0:02:42.6]} 16. bxc4 {[%clk 0:02:23.4]} 16... Bxc4
{[%clk 0:02:40.5]} 17. Qe3 {[%clk 0:01:40]} 17... f6 {[%clk 0:01:23.5]} 18. Nxe4
{[%clk 0:01:16.4]} 18... Bd5 {[%clk 0:01:21.9]} 19. a3 {[%clk 0:01:15.9]} 19...
Bxe4 {[%clk 0:00:51.8]} 20. Qxe4 {[%clk 0:01:07]} 20... Bc3 {[%clk 0:00:51.5]}
21. Rxc3 {[%clk 0:00:34]} 21... Qxc3 {[%clk 0:00:51]} 22. Rc1 {[%clk 0:00:34.4]}
22... Qxa3 {[%clk 0:00:50.2]} 23. Be3 {[%clk 0:00:29.6]} 23... Rac8 {[%clk
0:00:41.2]} 24. Rxc6 {[%clk 0:00:25.7]} 24... Rxc6 {[%clk 0:00:38.4]} 25. Qxc6
{[%clk 0:00:26.6]} 25... Qe7 {[%clk 0:00:36.8]} 26. Qc4+ {[%clk 0:00:17.3]}
26... Qf7 {[%clk 0:00:36.1]} 27. Qa4 {[%clk 0:00:10.8]} 27... Rd8 {[%clk
0:00:34.7]} 28. h4 {[%clk 0:00:11]} 28... h6 {[%clk 0:00:34.7]} 29. Bf4 {[%clk
0:00:09.1]} 29... Qd7 {[%clk 0:00:34.2]} 30. Qa2+ {[%clk 0:00:06.6]} 30... Kh8
{[%clk 0:00:32.2]} 31. Be3 {[%clk 0:00:03.7]} 31... Qb7 {[%clk 0:00:28.1]} 32.
Qa5 {[%clk 0:00:03.4]} 32... Rd5 {[%clk 0:00:25.9]} 33. Qa3 {[%clk 0:00:02.7]}
33... a5 {[%clk 0:00:25.5]} 34. Kh2 {[%clk 0:00:02.2]} 34... Qd7 {[%clk
0:00:23.1]} 35. Qf8+ {[%clk 0:00:01.3]} 35... Kh7 {[%clk 0:00:22.9]} 36. Qa8
{[%clk 0:00:01.6]} 36... a4 {[%clk 0:00:22.4]} 37. Qa6 {[%clk 0:00:01.7]} 37...
Rd6 {[%clk 0:00:21.1]} 38. Qa5 {[%clk 0:00:01.4]} 38... Re6 {[%clk 0:00:20]} 39.
Kg2 {[%clk 0:00:01.7]} 39... Re8 {[%clk 0:00:19.9]} 40. Kg1 {[%clk 0:00:02]}
40... Rb8 {[%clk 0:00:19.8]} 41. Bf4 {[%clk 0:00:01.9]} 41... Qb5 {[%clk
0:00:18.5]} 42. Qc7 {[%clk 0:00:01.6]} 42... Rb7 {[%clk 0:00:17.9]} 43. Qc2+
{[%clk 0:00:01.9]} 43... f5 {[%clk 0:00:16.4]} 44. e4 {[%clk 0:00:01.8]} 44...
Qb1+ {[%clk 0:00:16.2]} 45. Qxb1 {[%clk 0:00:02.4]} 45... Rxb1+ {[%clk
0:00:16.8]} 0-1

[Event "Early-Titled-Tuesday-Blitz-March-12-2024"]
[Site "Chess.com"]
[Date "2024.03.12"]
[Round "8"]
[White "Polish_fighter3000"]
[Black "Rud_Makarian"]
[Result "0-1"]
[WhiteElo "3116"]
[BlackElo "3031"]
[TimeControl "180+1"]
[EndTime "9:27:30 PDT"]
[Termination "Rud_Makarian won on time"]

1. c4 {[%clk 0:03:00.9]} 1... e6 {[%clk 0:02:59.5]} 2. Nf3 {[%clk 0:03:00.6]}
2... d5 {[%clk 0:02:59.9]} 3. g3 {[%clk 0:03:01.2]} 3... Nf6 {[%clk 0:03:00]} 4.
Bg2 {[%clk 0:03:01.5]} 4... dxc4 {[%clk 0:02:59.4]} 5. Qa4+ {[%clk 0:03:00.2]}
5... c6 {[%clk 0:02:57.3]} 6. Qxc4 {[%clk 0:02:59.7]} 6... b5 {[%clk 0:02:58]}
7. Qc2 {[%clk 0:02:55.6]} 7... Bb7 {[%clk 0:02:58.5]} 8. a4 {[%clk 0:02:52.3]}
8... a6 {[%clk 0:02:56.3]} 9. O-O {[%clk 0:02:41.5]} 9... Nbd7 {[%clk
0:02:56.9]} 10. Nc3 {[%clk 0:02:28.6]} 10... Be7 {[%clk 0:02:51.3]} 11. d3
{[%clk 0:02:24.5]} 11... O-O {[%clk 0:02:50.6]} 12. Rd1 {[%clk 0:02:09.5]} 12...
Qb6 {[%clk 0:02:47.3]} 13. e4 {[%clk 0:02:03.2]} 13... c5 {[%clk 0:02:44.9]} 14.
h3 {[%clk 0:02:01.1]} 14... Rac8 {[%clk 0:02:43.4]} 15. Be3 {[%clk 0:02:00.9]}
15... Rfd8 {[%clk 0:02:35.7]} 16. Qe2 {[%clk 0:01:52.8]} 16... b4 {[%clk
0:02:10]} 17. Nb1 {[%clk 0:01:49.5]} 17... Nb8 {[%clk 0:02:07.5]} 18. Ne5 {[%clk
0:01:43.7]} 18... Nfd7 {[%clk 0:02:05.1]} 19. Nc4 {[%clk 0:01:43.5]} 19... Qc7
{[%clk 0:02:04.1]} 20. Bf4 {[%clk 0:01:37]} 20... e5 {[%clk 0:02:00.4]} 21. Be3
{[%clk 0:01:37.6]} 21... Nc6 {[%clk 0:02:00.1]} 22. Nbd2 {[%clk 0:01:37.6]}
22... Nf8 {[%clk 0:01:55.7]} 23. Nb3 {[%clk 0:01:35.3]} 23... Ne6 {[%clk
0:01:56]} 24. h4 {[%clk 0:01:35.6]} 24... Ned4 {[%clk 0:01:50.7]} 25. Bxd4
{[%clk 0:01:33.5]} 25... Nxd4 {[%clk 0:01:51.6]} 26. Nxd4 {[%clk 0:01:31.9]}
26... Rxd4 {[%clk 0:01:52.5]} 27. Bh3 {[%clk 0:01:13.2]} 27... Rcd8 {[%clk
0:01:52.3]} 28. Rd2 {[%clk 0:01:11.4]} 28... g6 {[%clk 0:01:47.5]} 29. Rad1
{[%clk 0:01:08.9]} 29... Bf8 {[%clk 0:01:47.3]} 30. Qe3 {[%clk 0:00:52.9]} 30...
h5 {[%clk 0:01:20.8]} 31. g4 {[%clk 0:00:25.9]} 31... hxg4 {[%clk 0:01:12.6]}
32. Bxg4 {[%clk 0:00:26.8]} 32... Kh7 {[%clk 0:01:13]} 33. h5 {[%clk 0:00:25.5]}
33... Bh6 {[%clk 0:01:12.4]} 34. hxg6+ {[%clk 0:00:25.8]} 34... fxg6 {[%clk
0:01:13]} 35. Qh3 {[%clk 0:00:25.7]} 35... Kg7 {[%clk 0:01:11.9]} 36. Rc2 {[%clk
0:00:23.9]} 36... Rh8 {[%clk 0:00:58.7]} 37. Qg2 {[%clk 0:00:19.3]} 37... Bf4
{[%clk 0:00:54.7]} 38. Bf5 {[%clk 0:00:18.6]} 38... Qf7 {[%clk 0:00:50.3]} 39.
Ne3 {[%clk 0:00:19]} 39... Rh2 {[%clk 0:00:42.6]} 40. Qg4 {[%clk 0:00:16.3]}
40... Rh5 {[%clk 0:00:42.7]} 41. Be6 {[%clk 0:00:16.3]} 41... Qf6 {[%clk
0:00:28.4]} 42. Nf5+ {[%clk 0:00:16.1]} 42... Kh7 {[%clk 0:00:24.6]} 43. Rxc5
{[%clk 0:00:05.5]} 43... Rg5 {[%clk 0:00:18.6]} 44. Rc7+ {[%clk 0:00:05.7]}
44... Kh8 {[%clk 0:00:19.2]} 45. Nxd4 {[%clk 0:00:03.6]} 45... exd4 {[%clk
0:00:19]} 46. Kg2 {[%clk 0:00:02.7]} 46... Bxc7 {[%clk 0:00:16.1]} 47. Rh1+
{[%clk 0:00:01.9]} 47... Kg7 {[%clk 0:00:16.7]} 48. Kf1 {[%clk 0:00:01.3]} 48...
Rxg4 {[%clk 0:00:16.8]} 49. Bxg4 {[%clk 0:00:02.2]} 49... Bg3 {[%clk 0:00:17]}
50. f3 {[%clk 0:00:02.3]} 50... Qf4 {[%clk 0:00:17.5]} 51. Kg2 {[%clk 0:00:03]}
51... Bh4 {[%clk 0:00:17.4]} 52. Rxh4 {[%clk 0:00:02.8]} 52... Qd2+ {[%clk
0:00:16.3]} 53. Kg3 {[%clk 0:00:02]} 53... Qxd3 {[%clk 0:00:16.8]} 0-1